Cogmind - Beta 16.1 @@@ ROGUE MODE // 2026.04.05 @ 13:50:28 Player: littleman Result: Destroyed by S-10 Pest with Light Assault Rifle Performance ------------- Evolutions (0) 0 Regions Visited (2) 400 Robots Destroyed (15) 75 Value Destroyed (353) 353 Prototype IDs (0) 0 Alien Tech Used (0) 0 Bonus (-14) -14 TOTAL SCORE: 814 Bonus ------- Friendly Fire -14 Cogmind --------- Core Integrity 0/250 Matter 290/300 Energy 150/150 System Corruption 0% Temperature Cool (21) Movement Walking (190) Ox1 Location -10/Subcaves Parts ------- > --- POWER (1) -------- Light Angular Momentum Engine > --- PROPULSION (2) --- Aluminum Leg > --- UTILITY (2) ------ (None) > --- WEAPON (2) ------- Subdweller Laser Beamcaster > --- INVENTORY (5) ---- Sensor Array Signal Interpreter Armor Integrity Analyzer Peak State ------------ > --- POWER ------------ Light Angular Momentum Engine > --- PROPULSION ------- Aluminum Leg > --- UTILITY ---------- Scrap Shield > --- WEAPON ----------- Subdweller Laser Light Assault Rifle > --- INVENTORY -------- Sensor Array Signal Interpreter Armor Integrity Analyzer Beamcaster [Rating: 14] Favorites ----------- Power Light Ion Engine Engine Light Ion Engine Propulsion Aluminum Leg Leg Aluminum Leg Utility Scrap Shield Storage Small Storage Unit Protection Scrap Shield Weapon Light Assault Rifle Energy Gun Medium Laser Ballistic Gun Light Assault Rifle Launcher Grenade Launcher Special Weapon Mining Laser Build | -11 -10 -10 ------- Run | Yrd Mat Sub Slots Evolved . | . . . Power . | . . . Propulsion . | . . . Utility . | . . . Weapon . | . . . Parts Attached 18 | 7 2 9 Power 3 | 1 . 2 Engine 3 | 1 . 2 Core . | . . . Reactor . | . . . Propulsion 4 | 2 . 2 Treads . | . . . Leg 4 | 2 . 2 Wheel . | . . . Hover . | . . . Flight . | . . . Utility 3 | 1 1 1 Device . | . . . Storage 2 | 1 1 . Processor . | . . . Hackware . | . . . Protection 1 | . . 1 Artifact . | . . . Weapon 8 | 3 1 4 Energy Gun 4 | 2 . 2 Energy Cannon . | . . . Ballistic Gun 2 | . . 2 Ballistic Cannon . | . . . Launcher 1 | . 1 . Special Weapon 1 | 1 . . Impact Weapon . | . . . Slashing Weapon . | . . . Piercing Weapon . | . . . Special Melee Weapon . | . . . Unidentified Prototypes . | . . . Parts Lost 10 | . 4 6 Power 2 | . 1 1 Propulsion 1 | . . 1 Utility 2 | . 1 1 Weapon 5 | . 2 3 Highest Loss Streak 2 | . 2 2 To Critical Strikes . | . . . Average Backups 3 | . 3 4 Power . | . . . Propulsion . | . . . Utility 3 | . 2 4 Weapon . | . . . Tool/Special . | . . . Unused Backups 8 | . . 8 Power . | . . . Propulsion . | . . . Utility 7 | . . 7 Weapon 1 | . . 1 Tool/Special . | . . . Average Slot Usage (%) 67 | . 80 60 Engine 5 | . 10 2 Leg 20 | . 28 16 Storage 6 | . 14 2 Protection 7 | . 1 11 Energy Gun 9 | . 15 5 Ballistic Gun 13 | . . 21 Special Weapon 3 | . 8 . Peak Build Rating 14 | 6 7 14 Average Rating 7 | 4 5 8 On Entrance 3 | . 6 5 Avg Prop Armor Cover (%) . | . . . Naked Turns . | . . . Heaviest Build 32 | 11 12 32 Greatest Support 20 | 20 20 20 Greatest Overweight (x) 3 | . . 3 Average Overweight (x) . | . . 1 Largest Inventory Capacity 30 | 8 30 8 Average Capacity 6 | 6 8 5 Most Carried 8 | 3 8 8 Average Carried 4 | . 3 5 Final Capacity 8 | 8 8 5 Final Carried 8 | 1 8 3 Class Distribution -------------------- 94% | Mutant 5% | Scavenger-Mutant Dominant Class ---------------- Mutant | -10/Materials Mutant | -10/Subcaves Resources | -11 -10 -10 ----------- Run | Yrd Mat Sub Matter Collected 417 | 270 30 117 Remotely . | . . . Salvage Created 433 | 90 194 149 Parts 28 | 1 16 11 Haulers Intercepted . | . . . Recyclers Shooed . | . . . Parts Field Recycled . | . . . Retrieved Matter . | . . . Parts Self-Destructed 18 | . . 18 Prevented . | . . . Parts Restored . | . . . Kills | -11 -10 -10 ------- Run | Yrd Mat Sub Combat Hostiles Destroyed 11 | . 7 4 Guns 8 | . 4 4 Cannons 1 | . 1 . AOE 2 | . 2 . Classes Destroyed 7 | 2 4 1 Builder 1 | . 1 . Tunneler 1 | 1 . . Recycler 1 | 1 . . Watcher 1 | . 1 . Swarmer 4 | . 3 1 Grunt 4 | . 4 . Subdweller 3 | . . 3 Best Kill Streak 4 | 1 4 1 Combat Bots Only 4 | . 4 1 Max Kills in Single Turn 1 | 1 1 1 Gunslinging . | . . . Exploded 1 | . 1 . Melee . | . . . Uniques/NPCs Destroyed . | . . . Combat | -11 -10 -10 -------- Run | Yrd Mat Sub Hostile Shots Fired 145 | . 56 89 Missed 40 | . 11 29 Hits 105 | . 45 60 Projectile 105 | . 45 60 AOE 1 | . . 1 Critical Strikes 3 | . 1 2 Damage Taken 1553 | . 543 1010 Core 253 | . 77 176 Absorbed by Shields . | . . . Core Remaining (%) 100 | 100 . . Volleys Fired 74 | 6 48 20 Largest 2 | 2 2 2 Hottest 150 | 90 150 135 Shots Fired 111 | 12 64 35 Gun 102 | 12 55 35 Cannon . | . . . Launcher 4 | . 4 . Special 5 | . 5 . Kinetic 24 | . . 24 Thermal 83 | 12 60 11 Explosive 4 | . 4 . Electromagnetic . | . . . Robot Hit Streak 13 | 2 5 13 Robot Miss Streak 5 | 1 5 2 Penetration Max . | . . . Secondary Targets . | . . . Shots Hit Robots 67 | 6 35 26 Core Hits 28 | 3 16 9 Critical Kills . | . . . Critical Parts Destroyed . | . . . Critical Strikes 1 | . 1 . Burn 1 | . 1 . Melee Attacks . | . . . Impact . | . . . Slashing . | . . . Piercing . | . . . Sneak Attacks . | . . . Combat Hostiles . | . . . Follow-up Attacks . | . . . Damage Inflicted 1013 | 69 572 372 Guns 790 | 69 349 372 Cannons . | . . . Explosions 151 | . 151 . Melee . | . . . Ramming . | . . . Kinetic 191 | . . 191 Thermal 671 | 69 421 181 Explosive 151 | . 151 . Electromagnetic . | . . . Impact . | . . . Slashing . | . . . Piercing . | . . . Highest Corruption . | . . . Average Corruption . | . . . Corruption Purged . | . . . Corruption Blocked . | . . . Overload Shots . | . . . Overflow Damage 6 | . 6 . Projectiles 6 | . 6 . Explosions . | . . . Melee . | . . . Knockbacks . | . . . Impact . | . . . Kinetic . | . . . Secondary . | . . . Self-Inflicted Damage . | . . . Shots . | . . . Rammed . | . . . Targets Rammed . | . . . Kicked . | . . . Crushed . | . . . Highest Temperature 261 | 120 261 21 Average Temperature 72 | 51 79 10 Received Heat Transfer 351 | . 273 78 Effects 2 | . 2 . Interference 2 | . 2 . Siege Activations . | . . . Martial Activations . | . . . Shielding Activations . | . . . Robots Disrupted . | . . . Combat Hostiles . | . . . Robots Corrupted . | . . . Combat Hostiles . | . . . Parts Fried . | . . . Impact Corruptions . | . . . Robots Melted . | . . . Combat Hostiles . | . . . Parts Melted 2 | . 2 . Heat Transferred 1507 | 186 1059 262 Parts Sabotaged . | . . . Parts Stolen . | . . . Parts Stripped . | . . . Power Chain Reactions . | . . . Alert | -11 -10 -10 ------- Run | Yrd Mat Sub Maximum Alert Level . | . . . Low Security (%) 100 | 100 100 . Level 1 . | . . . Level 2 . | . . . Level 3 . | . . . Level 4 . | . . . Level 5 . | . . . High Security . | . . . Max Security . | . . . Peak Influence 136 | 5 136 . Initial 3 | . 3 . Average 16 | 1 19 . Influence Increases 333 | 10 258 65 Destroy 0b10 Robot/C 160 | . 140 20 Destroy 0b10 Robot/NC 20 | 10 10 . Destroy Leader 32 | . 32 . Disable Machine 15 | . 15 . Destroy Structure 31 | . 31 . Lose Combat Pursuer 75 | . 30 45 Influence Decreases 294 | 5 135 154 Entered New Map 64 | . 2 62 Time Decay 190 | 5 123 62 Lost Part 40 | . 10 30 Squads Dispatched 2 | . 2 . Investigation . | . . . Extermination . | . . . Reinforcement 2 | . 2 . Assault . | . . . Garrison . | . . . Intercept . | . . . Searches Triggered . | . . . Construction Impeded . | . . . Haulers Reinforced . | . . . Active Scanning Responses . | . . . Cargo Convoy Interrupts . | . . . Stealth | -11 -10 -10 --------- Run | Yrd Mat Sub Distress Signals . | . . . Communications Jammed . | . . . Distress Signals . | . . . Times Spotted 39 | . 15 24 Peak Tracking Total 10 | . 3 10 Tactical Retreats 3 | . 2 1 Traps | -11 -10 -10 ------- Run | Yrd Mat Sub Traps Triggered 2 | . . 2 Indirectly . | . . . Trap Hack Attempts . | . . . Triggered . | . . . Disarmed . | . . . Reprogrammed . | . . . Reused . | . . . Traps Extracted . | . . . Installed . | . . . Triggered . | . . . Machines | -11 -10 -10 ---------- Run | Yrd Mat Sub Machines Disabled 1 | . 1 . Max in Single Turn 1 | . 1 . Machines Repaired . | . . . Machines Dismantled . | . . . Machines Sabotaged . | . . . Overloaded Fab Kills . | . . . Hacking | -11 -10 -10 --------- Run | Yrd Mat Sub Machines Accessed 2 | . 2 . Terminals 1 | . 1 . Fabricators . | . . . Repair Stations 1 | . 1 . Recycling Units . | . . . Scanalyzers . | . . . Garrison Access . | . . . Total Hacks 4 | . 4 . Successful 3 | . 3 . Failed 1 | . 1 . Catastrophic . | . . . Database Lockouts . | . . . Manual . | . . . Terminals 2 | . 2 . Fabricators . | . . . Repair Stations 2 | . 2 . Recycling Units . | . . . Scanalyzers . | . . . Garrison Access . | . . . Terminal Hacks 2 | . 2 . Record 1 | . 1 . Alert Level 1 | . 1 . Fabricator Hacks . | . . . Repair Station Hacks 1 | . 1 . Refit 1 | . 1 . Recycling Unit Hacks . | . . . Scanalyzer . | . . . Garrison Access Hacks . | . . . Unauthorized Hacks . | . . . Terminals . | . . . Fabricators . | . . . Repair Stations . | . . . Recycling Units . | . . . Scanalyzers . | . . . Garrison Access . | . . . Data Cores Recovered . | . . . Used . | . . . Hacking Detections 1 | . 1 . Full Trace Events . | . . . Feedback Events . | . . . Feedback Blocked . | . . . Robot Schematics Acquired . | . . . Robots Built . | . . . Authchips . | . . . Time . | . . . Total Robot Build Rating . | . . . Part Schematics Acquired . | . . . Parts Built . | . . . Authchips . | . . . Time . | . . . Total Part Build Rating . | . . . Part Studies Acquired . | . . . Parts Repaired . | . . . Time . | . . . Parts Recycled . | . . . Recycled Matter . | . . . Retrieved Matter . | . . . Retrieved Components . | . . . Parts Scanalyzed . | . . . Part Schematics Acquired . | . . . Parts Damaged . | . . . Bothacking | -11 -10 -10 ------------ Run | Yrd Mat Sub Used RIF Installer . | . . . Robots Hacked . | . . . Non-combat . | . . . Combat . | . . . Robot Hacks Applied . | . . . Relay Couplers Released . | . . . Fabnet Peak Effective % . | . . . Robots Rewired . | . . . Allies Hacked . | . . . Hacks Repelled . | . . . Allies | -11 -10 -10 -------- Run | Yrd Mat Sub Total Allies . | . . . Largest Group . | . . . Highest-Rated Group . | . . . Highest-Rated Ally . | . . . Total Orders . | . . . Ally Attacks . | . . . Total Damage . | . . . Kills . | . . . Allies Corrupted . | . . . Allies Melted . | . . . Intel | -11 -10 -10 ------- Run | Yrd Mat Sub Active Infowar (turns) . | . . . Robot Analysis Total . | . . . Derelict Logs Recovered . | . . . Drone Launches . | . . . Drone Recoveries . | . . . Exploration | -11 -10 -10 ------------- Run | Yrd Mat Sub Turns Passed 1403 | 75 500 828 Spaces Moved 628 | 40 274 314 Core 7 | 7 . . Treads . | . . . Legs 621 | 33 274 314 Wheels . | . . . Hover . | . . . Flight . | . . . Fastest Speed 50 | 50 120 120 Average Speed 172 | 107 120 227 Slowest Speed 330 | 120 120 330 Overloaded Moves . | . . . Propulsion Burnouts . | . . . Robots Hopped . | . . . Potential Cave-ins 1 | . . 1 Cave-ins Triggered . | . . . Exploration Rate (%) 21 | 5 35 23 Regions Visited 2 Branch Regions 1 Pre-discovered Areas . | . . . Known Exits Taken . | . . . Unknown Exits Taken 2 | 1 1 . Scrap Searched . | . . . Spaces Dug . | . . . Terrain Destroyed 34 | . 34 . Melee . | . . . Projectile . | . . . AOE 34 | . 34 . Terrain Rammed . | . . . Walls Destroyed . | . . . Machines Disabled . | . . . Actions | -11 -10 -10 --------- Run | Yrd Mat Sub Total 829 | 59 372 398 Wait 66 | . 34 32 Move 626 | 39 273 314 Hop . | . . . Pick Up 27 | 7 10 10 Fast Attach . | . . . Attach 17 | 6 4 7 Detach 2 | . 2 . Swap 3 | 1 . 2 Drop 11 | . 1 10 Fire 74 | 6 48 20 Melee . | . . . Ram . | . . . Kick . | . . . Crush . | . . . Escape Stasis . | . . . Rewire . | . . . Trap . | . . . Miscellaneous 3 | . . 3 Route ------- -11/Scrapyard -10/Materials -10/Subcaves (discovered 1 exit: [*Rec]) History --------- Turn | Location | Event 11 | -11/Scrapyard | Discovered new exit (range 15) 76 | -11/Scrapyard | Entered Materials 318 | -10/Materials | Build established: Mutant 562 | -10/Materials | Discovered new exit (range 11) 576 | -10/Materials | Entered Subcaves 577 | -10/Subcaves | Approached by a straggling Scientist 693 | -10/Subcaves | Ambushed by swarm of Subdwellers 695 | -10/Subcaves | Ambushed by Subdwellers from Twisted Machinery 695 | -10/Subcaves | Ambushed by Subdwellers from Twisted Machinery 695 | -10/Subcaves | Ambushed by Subdwellers from Twisted Machinery 695 | -10/Subcaves | Ambushed by Subdwellers from Twisted Machinery 695 | -10/Subcaves | Ambushed by Subdwellers from Twisted Machinery 700 | -10/Subcaves | Core integrity fell below 50% 710 | -10/Subcaves | Core integrity fell below 20% 1036 | -10/Subcaves | Shifting Twisted Machinery released Sub. Laser 1036 | -10/Subcaves | Shifting Twisted Machinery released Battle Rifle 1388 | -10/Subcaves | Discovered new exit (range 13) 1404 | -10/Subcaves | Destroyed by S-10 Pest with Light Assault Rifle Last Messages --------------- U7-FHT(g) destroyed. Destroyed Scrap Shield. VE-QSI(R) destroyed. Acquired 6 matter. Dropped Core Shielding. Acquired Beamcaster. Subatomizers dissect the Disposable Heat Sink. Dropped Sub. Optics. Acquired Lgt. Angular Momentum Engine. S-10 Pest springs to life. EXIT=FOUND Lgt. Assault Rifle destroyed. Critical hit (Destroy). I0-E3E(c): "I think it's somewhere north of here" S-10 Pest destroyed. Scrap Shield destroyed. S-10 Pest destroyed. Flight Unit fries itself beyond repair. I0-E3E(c) destroyed. Map ----- +----------------------------------------------------+ | ?????????????????????????????????????????????????? | | ?????????????????????????????????????????????????? | | ?????????????????????????????????????????????????? | | ?????????????????????????????????????????????????? | | ?????????????????????????????????????????????????? | | ?????????????????????????????????????????????????? | | ?????????????????????????????????????????????????? | | ?????????????????????????????????????????????????? | | ?????????????????????????????????????????????????? | | ?????????????????????????????????????????????????? | | ?????????????????????????????????????????????????? | | ?????????????????????????????????????????????????? | | ?????????????????????????????????????????????????? | | ?????????????????????????????????????????????????? | | ?????????????????????????????????????????????????? | | ?????????????????????????????????????????????????? | | ?????????????????????????????????????????????????? | | ?????????????????????????????????????????????????? | | ?????????????????????????????????????????????????? | | ?????????????????????????????????????????????????? | | ????????????????????????###??????????????????????? | | ???????????????????????## ??????????????????????? | | ???????????????????#??## ??????????????????????? | | ??????????????## ## ## #??????????????????????? | | ?????????????## #??????????????????????? | | ????????????# @###????????????????????? | | ???????????# %g ;;#????????????????????? | | ??????????# ########= ;#????????????????????? | | ??????????????????##"""";=s;#??????#?????????????? | | ?????????????????## *!%;#### ##????????????? | | ?????????????????# %%s ;" "???????????? | | ?????????????????# ;;;# #??????????? | | ?????????????????###" [ ;;## #??????????? | | ???????????#####???#" =% !##?? "???????????? | | ???????##### #???#&* != #?? " " "???????????? | | ??????## #??##%! % "##"""" ""?"???????????? | | ???#### #?## & !" "#?##<##?????????????? | | ??## ### ##??????????????????? | | ??# ### "#??????????????????? | | ??# #?## "; ;" #???????????????? | | ?## ##?# ## #"; ## !!" #??????????????? | | ## #?######## ####?###%" #??????????????? | | ##????????# #???????|"" #??????????????? | | ####?????????####???????? " #??????????????? | | # ####????????????????????? "????????????????? | | # ##??????????????????????#???????????????? | | #??????????????????????????????????????? | | #??????????????????????????????????????? | | ##??????????????????????????????????????? | | ##???????????????????????????????????????? | +----------------------------------------------------+ Best States ------------- Heat Dissipation 25 Energy Generation 18 Energy Capacity 200 Matter Stores 300 Matter Capacity 300 Sight Range 16 Terrain Scan Density 10 Armor Coverage 800 Evasion (%) 55 Item Schematics ----------------- None Robot Schematics ------------------ None Fabricated ------------ Nothing Repaired ---------- Nothing Studied --------- None Alien Tech Used ----------------- None Achievements -------------- Fitting Room Survival Of The Most Covered Challenges ------------ None Game ------ Seed HardlightBottomlessCore Manual? 0 Play Time 00:16:15 Cumulative 63.1 hours Start 2026.04.04 @ 13:23:22 End 2026.04.05 @ 13:50:28 Sessions 2 Manual Loads 0 Difficulty Rogue Special Mode None Game No. 7 Rogue 6 Adventurer 1 Explorer 0 Win Type - Total 0 Types 0/0/0/0/0/0/0/0/0/0 Lore% 3 Gallery% 18 Achievement% 18 Wizard Run 0 Options --------- Layout 1 ASCII 0 Keyboard 0 Movement Mouse Keybinds 0 Fullscreen 1 Font 24/Smallcaps Map View 50x35 Zoom Use 0% Tactical HUD 0 Map Filters NONE Filters NONE Steam 1 RUN: f6f4a233-0b78-45dc-9edf-b7ca2bc6eca8